[Event "Titled Tuesday Blitz January 03 Early 2023"]
[White "Taichman, Ori"]
[Black "Mahdavi, Reza"]
[WhiteFideId "2804069"]
[BlackFideId "12595926"]
[WhiteElo "2299"]
[BlackElo "2339"]
[Result "0-1"]
[Round "02"]
[TimeControl "180+2"]
[Date "2023.01.03"]
[WhiteClock "0:00:06"]
[BlackClock "0:00:54"]

1. e4 {[%clk 0:03:00]}  c5 {[%clk 0:02:56]} 2. Nf3 {[%clk 0:02:59]}  e6 {[%clk 0:02:55]} 3. b3 {[%clk 0:02:59]}  a6 {[%clk 0:02:54]} 4. Bb2 {[%clk 0:02:59]}  Nc6 {[%clk 0:02:55]} 5. c4 {[%clk 0:02:57]}  Nf6 {[%clk 0:02:55]} 6. e5 {[%clk 0:02:57]}  Ng4 {[%clk 0:02:56]} 7. h3 {[%clk 0:02:58]}  Nh6 {[%clk 0:02:56]} 8. g4 {[%clk 0:02:58]}  d5 {[%clk 0:02:46]} 9. exd6 {[%clk 0:02:57]}  f6 {[%clk 0:02:46]} 10. d4 {[%clk 0:02:52]}  cxd4 {[%clk 0:02:45]} 11. Nxd4 {[%clk 0:02:53]}  Bxd6 {[%clk 0:02:42]} 12. Nxc6 {[%clk 0:02:49]}  bxc6 {[%clk 0:02:43]} 13. Bg2 {[%clk 0:02:49]}  O-O {[%clk 0:02:43]} 14. Bxc6 {[%clk 0:02:42]}  Rb8 {[%clk 0:02:40]} 15. Ba3 {[%clk 0:02:28]}  Qa5+ {[%clk 0:02:33]} 16. Qd2 {[%clk 0:02:28]}  Qe5+ {[%clk 0:02:34]} 17. Kf1 {[%clk 0:02:06]}  Bxa3 {[%clk 0:02:24]} 18. Nc3 {[%clk 0:01:43]}  Bb4 {[%clk 0:02:21]} 19. Rc1 {[%clk 0:01:43]}  Bb7 {[%clk 0:02:16]} 20. Bxb7 {[%clk 0:01:42]}  Rxb7 {[%clk 0:02:17]} 21. Kg2 {[%clk 0:01:41]}  Nf7 {[%clk 0:02:12]} 22. Rhe1 {[%clk 0:01:38]}  Qd6 {[%clk 0:02:01]} 23. Qxd6 {[%clk 0:01:37]}  Nxd6 {[%clk 0:02:02]} 24. Rxe6 {[%clk 0:01:38]}  Kf7 {[%clk 0:02:02]} 25. Re2 {[%clk 0:01:33]}  Re8 {[%clk 0:01:59]} 26. Rxe8 {[%clk 0:01:32]}  Kxe8 {[%clk 0:02:00]} 27. Nd5 {[%clk 0:01:32]}  Bc5 {[%clk 0:02:00]} 28. Re1+ {[%clk 0:01:22]}  Kf7 {[%clk 0:02:01]} 29. f4 {[%clk 0:01:18]}  a5 {[%clk 0:02:00]} 30. Kf3 {[%clk 0:01:15]}  a4 {[%clk 0:01:56]} 31. bxa4 {[%clk 0:01:16]}  Ra7 {[%clk 0:01:50]} 32. a5 {[%clk 0:00:46]}  Rxa5 {[%clk 0:01:38]} 33. Re7+ {[%clk 0:00:45]}  Kg6 {[%clk 0:01:39]} 34. Rc7 {[%clk 0:00:27]}  Ra3+ {[%clk 0:01:36]} 35. Ke2 {[%clk 0:00:26]}  Rxa2+ {[%clk 0:01:36]} 36. Kd3 {[%clk 0:00:26]}  Ra3+ {[%clk 0:01:36]} 37. Ke2 {[%clk 0:00:26]}  Ne4 {[%clk 0:01:31]} 38. h4 {[%clk 0:00:23]}  h5 {[%clk 0:01:23]} 39. f5+ {[%clk 0:00:23]}  Kh6 {[%clk 0:01:23]} 40. g5+ {[%clk 0:00:23]}  fxg5 {[%clk 0:01:24]} 41. hxg5+ {[%clk 0:00:24]}  Kxg5 {[%clk 0:01:22]} 42. Rxg7+ {[%clk 0:00:24]}  Kxf5 {[%clk 0:01:23]} 43. Rh7 {[%clk 0:00:24]}  Kg4 {[%clk 0:01:20]} 44. Rg7+ {[%clk 0:00:21]}  Kf5 {[%clk 0:01:20]} 45. Rh7 {[%clk 0:00:21]}  Kg6 {[%clk 0:01:20]} 46. Rh8 {[%clk 0:00:21]}  Bd4 {[%clk 0:01:18]} 47. Nf4+ {[%clk 0:00:19]}  Kf5 {[%clk 0:01:14]} 48. Rf8+ {[%clk 0:00:17]}  Kg4 {[%clk 0:01:14]} 49. Ne6 {[%clk 0:00:16]}  Ra2+ {[%clk 0:01:11]} 50. Kd3 {[%clk 0:00:16]}  Nc5+ {[%clk 0:01:12]} 51. Nxc5 {[%clk 0:00:15]}  Bxc5 {[%clk 0:01:13]} 52. Rg8+ {[%clk 0:00:16]}  Kh3 {[%clk 0:01:09]} 53. Ke4 {[%clk 0:00:16]}  Rd2 {[%clk 0:01:09]} 54. Kf3 {[%clk 0:00:16]}  h4 {[%clk 0:01:08]} 55. Rg5 {[%clk 0:00:12]}  Ba7 {[%clk 0:01:05]} 56. c5 {[%clk 0:00:12]}  Rc2 {[%clk 0:01:06]} 57. Rh5 {[%clk 0:00:07]}  Rxc5 {[%clk 0:01:04]} 58. Rh7 {[%clk 0:00:07]}  Rc3+ {[%clk 0:01:02]} 59. Ke2 {[%clk 0:00:07]}  Bc5 {[%clk 0:01:02]} 60. Kf1 {[%clk 0:00:07]}  Kg3 {[%clk 0:01:01]} 61. Rg7+ {[%clk 0:00:07]}  Kh2 {[%clk 0:01:02]} 62. Rg2+ {[%clk 0:00:06]}  Kh1 {[%clk 0:01:01]} 63. Rg4 {[%clk 0:00:06]}  h3 {[%clk 0:01:01]} 64. Rh4 {[%clk 0:00:06]}  h2 {[%clk 0:01:00]} 65. Rg4 {[%clk 0:00:05]}  Rf3+ {[%clk 0:00:59]} 66. Ke2 {[%clk 0:00:06]}  Rf2+ {[%clk 0:01:00]} 67. Ke1 {[%clk 0:00:06]}  Rg2 {[%clk 0:01:00]} 68. Rf4 {[%clk 0:00:06]}  Rg5 {[%clk 0:00:54]} 69. Kf1 {[%clk 0:00:05]}  Rg1+ {[%clk 0:00:53]} 70. Ke2 {[%clk 0:00:06]}  Kg2 {[%clk 0:00:54]} 71. Rg4+ {[%clk 0:00:06]}  Kh3 {[%clk 0:00:54]} 0-1


[Site "https://www.chess.com"]

[Event "Titled Tuesday Blitz January 03 Early 2023"]
[White "Manukyan, Artyom"]
[Black "Boruchovsky, Avital"]
[WhiteFideId "13305786"]
[BlackFideId "2800055"]
[WhiteElo "2110"]
[BlackElo "2539"]
[Result "0-1"]
[Round "02"]
[TimeControl "180+2"]
[Date "2023.01.03"]
[WhiteClock "0:00:21"]
[BlackClock "0:00:49"]

1. e4 {[%clk 0:03:00]}  d6 {[%clk 0:02:57]} 2. d4 {[%clk 0:03:00]}  Nf6 {[%clk 0:02:57]} 3. Nc3 {[%clk 0:03:01]}  g6 {[%clk 0:02:58]} 4. f4 {[%clk 0:03:01]}  Bg7 {[%clk 0:02:56]} 5. Nf3 {[%clk 0:03:01]}  c6 {[%clk 0:02:56]} 6. Bd3 {[%clk 0:03:00]}  O-O {[%clk 0:02:55]} 7. O-O {[%clk 0:03:00]}  b5 {[%clk 0:02:55]} 8. a3 {[%clk 0:02:59]}  Nbd7 {[%clk 0:02:49]} 9. Qe1 {[%clk 0:02:59]}  Ne8 {[%clk 0:02:46]} 10. e5 {[%clk 0:02:54]}  Nc7 {[%clk 0:02:42]} 11. Qh4 {[%clk 0:02:44]}  c5 {[%clk 0:02:08]} 12. Nxb5 {[%clk 0:01:52]}  Nxb5 {[%clk 0:02:02]} 13. Bxb5 {[%clk 0:01:53]}  cxd4 {[%clk 0:02:02]} 14. exd6 {[%clk 0:01:50]}  exd6 {[%clk 0:01:58]} 15. Qxd8 {[%clk 0:01:48]}  Rxd8 {[%clk 0:01:59]} 16. Rd1 {[%clk 0:01:46]}  Rb8 {[%clk 0:01:58]} 17. Bc4 {[%clk 0:01:40]}  Nc5 {[%clk 0:01:41]} 18. Nxd4 {[%clk 0:01:38]}  Bg4 {[%clk 0:01:40]} 19. Nf3 {[%clk 0:01:29]}  Bxf3 {[%clk 0:01:37]} 20. gxf3 {[%clk 0:01:30]}  Bxb2 {[%clk 0:01:37]} 21. Rb1 {[%clk 0:01:13]}  Bd4+ {[%clk 0:01:35]} 22. Rxd4 {[%clk 0:01:05]}  Rxb1 {[%clk 0:01:35]} 23. Rd1 {[%clk 0:01:06]}  Rdb8 {[%clk 0:01:24]} 24. Kf1 {[%clk 0:01:01]}  Ne6 {[%clk 0:01:22]} 25. Ke2 {[%clk 0:00:58]}  Ra1 {[%clk 0:01:22]} 26. Bb3 {[%clk 0:00:56]}  Nc5 {[%clk 0:01:18]} 27. f5 {[%clk 0:00:28]}  Nxb3 {[%clk 0:01:16]} 28. cxb3 {[%clk 0:00:29]}  Rxb3 {[%clk 0:01:02]} 29. f6 {[%clk 0:00:29]}  Rb8 {[%clk 0:01:01]} 30. Kd2 {[%clk 0:00:27]}  Rc8 {[%clk 0:00:55]} 31. Re1 {[%clk 0:00:26]}  g5 {[%clk 0:00:50]} 32. Rg1 {[%clk 0:00:24]}  h6 {[%clk 0:00:50]} 33. h4 {[%clk 0:00:25]}  Kh7 {[%clk 0:00:49]} 34. hxg5 {[%clk 0:00:25]}  hxg5 {[%clk 0:00:50]} 35. Rh1+ {[%clk 0:00:19]}  Kg6 {[%clk 0:00:50]} 36. Rg1 {[%clk 0:00:20]}  Raxc1 {[%clk 0:00:48]} 37. Rxc1 {[%clk 0:00:20]}  Rxc1 {[%clk 0:00:49]} 38. Kxc1 {[%clk 0:00:21]}  Kxf6 {[%clk 0:00:49]} 0-1


[Site "https://www.chess.com"]

[Event "Titled Tuesday Blitz January 03 Early 2023"]
[White "Shipov, Sergei"]
[Black "Ezat, Mohamed"]
[WhiteFideId "4113624"]
[BlackFideId "10600906"]
[WhiteElo "2541"]
[BlackElo "2402"]
[Result "1-0"]
[Round "02"]
[TimeControl "180+2"]
[Date "2023.01.03"]
[WhiteClock "0:00:16"]
[BlackClock "0:00:04"]

1. d4 {[%clk 0:03:00]}  Nf6 {[%clk 0:02:58]} 2. c4 {[%clk 0:03:01]}  g6 {[%clk 0:02:59]} 3. Nc3 {[%clk 0:03:01]}  Bg7 {[%clk 0:02:59]} 4. e4 {[%clk 0:03:01]}  d6 {[%clk 0:03:00]} 5. Be2 {[%clk 0:03:01]}  O-O {[%clk 0:03:00]} 6. Nf3 {[%clk 0:03:02]}  e5 {[%clk 0:03:00]} 7. Be3 {[%clk 0:03:02]}  exd4 {[%clk 0:02:54]} 8. Nxd4 {[%clk 0:03:02]}  Re8 {[%clk 0:02:54]} 9. f3 {[%clk 0:03:02]}  c6 {[%clk 0:02:55]} 10. Bf2 {[%clk 0:03:01]}  d5 {[%clk 0:02:56]} 11. exd5 {[%clk 0:03:01]}  cxd5 {[%clk 0:02:56]} 12. O-O {[%clk 0:03:01]}  Nc6 {[%clk 0:02:56]} 13. c5 {[%clk 0:03:02]}  Re5 {[%clk 0:02:55]} 14. a3 {[%clk 0:02:53]}  Nh5 {[%clk 0:02:46]} 15. g3 {[%clk 0:02:33]}  Bh3 {[%clk 0:02:36]} 16. Re1 {[%clk 0:02:33]}  Nf6 {[%clk 0:02:21]} 17. Qd2 {[%clk 0:02:27]}  Qf8 {[%clk 0:02:19]} 18. b4 {[%clk 0:02:22]}  Bh6 {[%clk 0:02:15]} 19. Qb2 {[%clk 0:02:16]}  Rae8 {[%clk 0:02:05]} 20. Ncb5 {[%clk 0:02:16]}  Be3 {[%clk 0:01:54]} 21. Nxc6 {[%clk 0:01:58]}  bxc6 {[%clk 0:01:50]} 22. Nd6 {[%clk 0:01:58]}  Qh6 {[%clk 0:01:02]} 23. Bd3 {[%clk 0:00:48]}  Bxf2+ {[%clk 0:00:52]} 24. Qxf2 {[%clk 0:00:47]}  R8e7 {[%clk 0:00:39]} 25. Rxe5 {[%clk 0:00:40]}  Rxe5 {[%clk 0:00:39]} 26. Re1 {[%clk 0:00:41]}  Nd7 {[%clk 0:00:36]} 27. f4 {[%clk 0:00:39]}  Rxe1+ {[%clk 0:00:32]} 28. Qxe1 {[%clk 0:00:40]}  Qg7 {[%clk 0:00:29]} 29. Bf1 {[%clk 0:00:20]}  Qd4+ {[%clk 0:00:27]} 30. Qf2 {[%clk 0:00:18]}  Qa1 {[%clk 0:00:24]} 31. b5 {[%clk 0:00:18]}  Bxf1 {[%clk 0:00:14]} 32. Qxf1 {[%clk 0:00:15]}  Qd4+ {[%clk 0:00:14]} 33. Qf2 {[%clk 0:00:16]}  Qd1+ {[%clk 0:00:05]} 34. Kg2 {[%clk 0:00:16]}  cxb5 {[%clk 0:00:04]} 35. c6 {[%clk 0:00:16]} 1-0


[Site "https://www.chess.com"]

[Event "Titled Tuesday Blitz January 03 Early 2023"]
[White "Yuan, Qingyu"]
[Black "Bodnaruk, Anastasia"]
[WhiteFideId "8609772"]
[BlackFideId "4181751"]
[WhiteElo "2373"]
[BlackElo "2350"]
[Result "1-0"]
[Round "02"]
[TimeControl "180+2"]
[Date "2023.01.03"]
[WhiteClock "0:00:08"]
[BlackClock "0:00:01"]

1. e4 {[%clk 0:03:00]}  c5 {[%clk 0:02:59]} 2. Nf3 {[%clk 0:03:01]}  d6 {[%clk 0:03:00]} 3. Bb5+ {[%clk 0:03:01]}  Bd7 {[%clk 0:02:59]} 4. Bxd7+ {[%clk 0:03:01]}  Qxd7 {[%clk 0:02:59]} 5. c4 {[%clk 0:03:02]}  Nf6 {[%clk 0:02:58]} 6. Nc3 {[%clk 0:03:02]}  g6 {[%clk 0:02:58]} 7. d4 {[%clk 0:03:02]}  cxd4 {[%clk 0:02:58]} 8. Nxd4 {[%clk 0:03:03]}  Bg7 {[%clk 0:02:59]} 9. f3 {[%clk 0:03:03]}  O-O {[%clk 0:02:59]} 10. Be3 {[%clk 0:03:03]}  Nc6 {[%clk 0:02:51]} 11. O-O {[%clk 0:02:59]}  e6 {[%clk 0:02:50]} 12. Qd2 {[%clk 0:02:50]}  Rfd8 {[%clk 0:02:49]} 13. Rad1 {[%clk 0:02:41]}  d5 {[%clk 0:02:48]} 14. cxd5 {[%clk 0:02:36]}  exd5 {[%clk 0:02:47]} 15. Nxc6 {[%clk 0:02:37]}  bxc6 {[%clk 0:02:47]} 16. e5 {[%clk 0:02:34]}  Ne8 {[%clk 0:02:44]} 17. f4 {[%clk 0:02:33]}  f6 {[%clk 0:02:33]} 18. Bd4 {[%clk 0:02:09]}  f5 {[%clk 0:02:14]} 19. Na4 {[%clk 0:02:03]}  Nc7 {[%clk 0:02:13]} 20. Nc5 {[%clk 0:02:03]}  Qe7 {[%clk 0:02:13]} 21. Nb7 {[%clk 0:01:59]}  Rdb8 {[%clk 0:02:00]} 22. Bc5 {[%clk 0:01:52]}  Qd7 {[%clk 0:01:53]} 23. Nd6 {[%clk 0:01:45]}  Ne6 {[%clk 0:01:53]} 24. b4 {[%clk 0:01:36]}  a5 {[%clk 0:01:48]} 25. a3 {[%clk 0:01:33]}  axb4 {[%clk 0:01:48]} 26. axb4 {[%clk 0:01:33]}  Bf8 {[%clk 0:01:17]} 27. Ra1 {[%clk 0:01:25]}  Qd8 {[%clk 0:00:55]} 28. g3 {[%clk 0:01:14]}  Be7 {[%clk 0:00:40]} 29. h4 {[%clk 0:01:08]}  h5 {[%clk 0:00:39]} 30. Kg2 {[%clk 0:01:02]}  Kg7 {[%clk 0:00:39]} 31. Kh3 {[%clk 0:01:02]}  Qd7 {[%clk 0:00:34]} 32. Qc3 {[%clk 0:00:53]}  Qd8 {[%clk 0:00:31]} 33. Rxa8 {[%clk 0:00:47]}  Rxa8 {[%clk 0:00:31]} 34. Ra1 {[%clk 0:00:48]}  Kf8 {[%clk 0:00:24]} 35. Ra3 {[%clk 0:00:45]}  Nc7 {[%clk 0:00:15]} 36. e6 {[%clk 0:00:35]}  Kg8 {[%clk 0:00:05]} 37. Nf7 {[%clk 0:00:32]}  d4 {[%clk 0:00:04]} 38. Rxa8 {[%clk 0:00:19]}  Nxa8 {[%clk 0:00:01]} 39. Qa3 {[%clk 0:00:09]}  d3 {[%clk 0:00:01]} 40. Nxd8 {[%clk 0:00:08]} 1-0


[Site "https://www.chess.com"]

[Event "Titled Tuesday Blitz January 03 Early 2023"]
[White "Beerdsen, Thomas"]
[Black "Slade, Theodore"]
[WhiteFideId "1030108"]
[BlackFideId "426547"]
[WhiteElo "2507"]
[BlackElo "1995"]
[Result "1-0"]
[Round "02"]
[TimeControl "180+2"]
[Date "2023.01.03"]
[WhiteClock "0:00:06"]
[BlackClock "0:00:02"]

1. e4 {[%clk 0:02:54]}  e5 {[%clk 0:03:00]} 2. Nf3 {[%clk 0:02:53]}  Nc6 {[%clk 0:03:01]} 3. c3 {[%clk 0:02:53]}  d5 {[%clk 0:03:00]} 4. Qa4 {[%clk 0:02:53]}  f6 {[%clk 0:03:01]} 5. d3 {[%clk 0:02:53]}  Be6 {[%clk 0:02:51]} 6. Be2 {[%clk 0:02:44]}  Qd7 {[%clk 0:02:47]} 7. O-O {[%clk 0:02:43]}  Bc5 {[%clk 0:02:37]} 8. b4 {[%clk 0:02:38]}  Bb6 {[%clk 0:02:36]} 9. Nbd2 {[%clk 0:02:30]}  Nge7 {[%clk 0:02:34]} 10. b5 {[%clk 0:02:22]}  Na5 {[%clk 0:02:27]} 11. d4 {[%clk 0:02:00]}  exd4 {[%clk 0:02:14]} 12. cxd4 {[%clk 0:02:01]}  O-O {[%clk 0:02:05]} 13. Ba3 {[%clk 0:01:57]}  Rfe8 {[%clk 0:01:56]} 14. Rfe1 {[%clk 0:01:52]}  a6 {[%clk 0:01:47]} 15. e5 {[%clk 0:01:45]}  axb5 {[%clk 0:01:41]} 16. Bxb5 {[%clk 0:01:45]}  c6 {[%clk 0:01:41]} 17. Bd3 {[%clk 0:01:45]}  Nc4 {[%clk 0:01:37]} 18. Qb4 {[%clk 0:01:09]}  Ba5 {[%clk 0:01:13]} 19. Qb3 {[%clk 0:00:36]}  Nxd2 {[%clk 0:01:00]} 20. Nxd2 {[%clk 0:00:35]}  Bxd2 {[%clk 0:01:00]} 21. Re2 {[%clk 0:00:35]}  Bf4 {[%clk 0:00:58]} 22. exf6 {[%clk 0:00:35]}  gxf6 {[%clk 0:00:58]} 23. Rae1 {[%clk 0:00:35]}  Ng6 {[%clk 0:00:53]} 24. g3 {[%clk 0:00:29]}  Bh6 {[%clk 0:00:53]} 25. h4 {[%clk 0:00:14]}  Bf7 {[%clk 0:00:50]} 26. h5 {[%clk 0:00:14]}  Nf8 {[%clk 0:00:45]} 27. Re7 {[%clk 0:00:14]}  Qg4 {[%clk 0:00:29]} 28. Qxb7 {[%clk 0:00:13]}  Rxe7 {[%clk 0:00:24]} 29. Rxe7 {[%clk 0:00:14]}  Qd1+ {[%clk 0:00:16]} 30. Bf1 {[%clk 0:00:13]}  Rxa3 {[%clk 0:00:14]} 31. Rxf7 {[%clk 0:00:13]}  Qxh5 {[%clk 0:00:15]} 32. Rxf6 {[%clk 0:00:12]}  Rxa2 {[%clk 0:00:13]} 33. Qxc6 {[%clk 0:00:11]}  Bg7 {[%clk 0:00:09]} 34. Rf4 {[%clk 0:00:11]}  Qg5 {[%clk 0:00:05]} 35. Qb5 {[%clk 0:00:08]}  Rd2 {[%clk 0:00:05]} 36. Kg2 {[%clk 0:00:07]}  Rxd4 {[%clk 0:00:04]} 37. Rf3 {[%clk 0:00:07]}  Rd2 {[%clk 0:00:03]} 38. Bc4 {[%clk 0:00:07]}  Qg6 {[%clk 0:00:01]} 39. Bxd5+ {[%clk 0:00:07]}  Kh8 {[%clk 0:00:02]} 40. Bf7 {[%clk 0:00:06]}  Qg5 {[%clk 0:00:02]} 41. Qxg5 {[%clk 0:00:06]}  Ne6 {[%clk 0:00:02]} 42. Qxd2 {[%clk 0:00:06]} 1-0


[Site "https://www.chess.com"]

[Event "Titled Tuesday Blitz January 03 Early 2023"]
[White "Gurevich, Dmitry"]
[Black "Krivonosov, Oleg"]
[WhiteFideId "2000407"]
[BlackFideId "11600349"]
[WhiteElo "2393"]
[BlackElo "2359"]
[Result "1/2-1/2"]
[Round "02"]
[TimeControl "180+2"]
[Date "2023.01.03"]
[WhiteClock "0:01:06"]
[BlackClock "0:01:41"]

1. d4 {[%clk 0:03:00]}  d5 {[%clk 0:02:59]} 2. c4 {[%clk 0:03:01]}  e6 {[%clk 0:02:58]} 3. Nc3 {[%clk 0:02:59]}  Be7 {[%clk 0:02:56]} 4. Nf3 {[%clk 0:02:59]}  Nf6 {[%clk 0:02:55]} 5. g3 {[%clk 0:02:58]}  O-O {[%clk 0:02:54]} 6. Bg2 {[%clk 0:02:59]}  Nbd7 {[%clk 0:02:53]} 7. cxd5 {[%clk 0:02:45]}  exd5 {[%clk 0:02:52]} 8. O-O {[%clk 0:02:45]}  c6 {[%clk 0:02:52]} 9. Rb1 {[%clk 0:02:43]}  a5 {[%clk 0:02:51]} 10. Bf4 {[%clk 0:02:42]}  Re8 {[%clk 0:02:50]} 11. a3 {[%clk 0:02:37]}  Nf8 {[%clk 0:02:50]} 12. b4 {[%clk 0:02:32]}  axb4 {[%clk 0:02:47]} 13. axb4 {[%clk 0:02:31]}  Bf5 {[%clk 0:02:47]} 14. Rb3 {[%clk 0:02:29]}  b5 {[%clk 0:02:40]} 15. Ne5 {[%clk 0:02:28]}  Ra6 {[%clk 0:02:38]} 16. Qd2 {[%clk 0:02:14]}  Ng6 {[%clk 0:02:35]} 17. Rc1 {[%clk 0:02:02]}  Bd6 {[%clk 0:02:27]} 18. Nxg6 {[%clk 0:01:52]}  hxg6 {[%clk 0:02:23]} 19. Bxd6 {[%clk 0:01:51]}  Qxd6 {[%clk 0:02:24]} 20. Qf4 {[%clk 0:01:47]}  Qxf4 {[%clk 0:02:20]} 21. gxf4 {[%clk 0:01:47]}  Ne4 {[%clk 0:02:14]} 22. Nxe4 {[%clk 0:01:44]}  Bxe4 {[%clk 0:02:14]} 23. Bxe4 {[%clk 0:01:43]}  Rxe4 {[%clk 0:02:15]} 24. e3 {[%clk 0:01:42]}  Kf8 {[%clk 0:02:12]} 25. Rbc3 {[%clk 0:01:41]}  Re6 {[%clk 0:02:12]} 26. Rb3 {[%clk 0:01:39]}  Ke7 {[%clk 0:02:09]} 27. Rcc3 {[%clk 0:01:39]}  Ra4 {[%clk 0:02:02]} 28. Kg2 {[%clk 0:01:30]}  Kd6 {[%clk 0:01:58]} 29. Kf3 {[%clk 0:01:30]}  Re8 {[%clk 0:01:58]} 30. Rb1 {[%clk 0:01:26]}  Rh8 {[%clk 0:01:55]} 31. Kg3 {[%clk 0:01:24]}  Rha8 {[%clk 0:01:54]} 32. Rbc1 {[%clk 0:01:22]}  R8a6 {[%clk 0:01:53]} 33. Rb1 {[%clk 0:01:21]}  Ra3 {[%clk 0:01:50]} 34. Rxa3 {[%clk 0:01:19]}  Rxa3 {[%clk 0:01:49]} 35. h4 {[%clk 0:01:16]}  Ra2 {[%clk 0:01:46]} 36. Kf3 {[%clk 0:01:15]}  Ke6 {[%clk 0:01:42]} 37. Rc1 {[%clk 0:01:07]}  Kd6 {[%clk 0:01:42]} 38. Rb1 {[%clk 0:01:07]}  Ke6 {[%clk 0:01:41]} 39. Rc1 {[%clk 0:01:06]}  Kd6 {[%clk 0:01:41]} 40. Rb1 {[%clk 0:01:06]} 1/2-1/2


[Site "https://www.chess.com"]

[Event "Titled Tuesday Blitz January 03 Early 2023"]
[White "Mohammed, Zozek Salah Mohammed"]
[Black "Kaasen, Tor Fredrik"]
[WhiteFideId "4803361"]
[BlackFideId "1516647"]
[WhiteElo "2210"]
[BlackElo "2480"]
[Result "1/2-1/2"]
[Round "02"]
[TimeControl "180+2"]
[Date "2023.01.03"]
[WhiteClock "0:00:08"]
[BlackClock "0:00:09"]

1. d4 {[%clk 0:03:00]}  Nf6 {[%clk 0:02:59]} 2. Nf3 {[%clk 0:03:00]}  g6 {[%clk 0:03:00]} 3. g3 {[%clk 0:03:00]}  Bg7 {[%clk 0:03:00]} 4. Bg2 {[%clk 0:03:01]}  O-O {[%clk 0:03:01]} 5. O-O {[%clk 0:03:01]}  d6 {[%clk 0:03:02]} 6. c4 {[%clk 0:03:01]}  Nc6 {[%clk 0:03:02]} 7. Nc3 {[%clk 0:03:01]}  e5 {[%clk 0:03:02]} 8. Qd3 {[%clk 0:02:47]}  exd4 {[%clk 0:02:37]} 9. Nxd4 {[%clk 0:02:46]}  Nxd4 {[%clk 0:02:38]} 10. Qxd4 {[%clk 0:02:46]}  Be6 {[%clk 0:02:39]} 11. Qd3 {[%clk 0:02:38]}  Nd7 {[%clk 0:02:39]} 12. b3 {[%clk 0:02:32]}  Nc5 {[%clk 0:02:38]} 13. Qd2 {[%clk 0:02:32]}  a5 {[%clk 0:02:37]} 14. Bb2 {[%clk 0:02:29]}  a4 {[%clk 0:02:37]} 15. Nxa4 {[%clk 0:02:21]}  Nxa4 {[%clk 0:02:37]} 16. Bxg7 {[%clk 0:02:20]}  Kxg7 {[%clk 0:02:38]} 17. bxa4 {[%clk 0:02:20]}  Rxa4 {[%clk 0:02:32]} 18. Bxb7 {[%clk 0:02:11]}  Qf6 {[%clk 0:02:20]} 19. Bd5 {[%clk 0:01:42]}  Bxd5 {[%clk 0:02:02]} 20. cxd5 {[%clk 0:01:43]}  Rfa8 {[%clk 0:01:57]} 21. Qc2 {[%clk 0:01:41]}  R8a7 {[%clk 0:01:55]} 22. Rfc1 {[%clk 0:01:34]}  h5 {[%clk 0:01:55]} 23. Qc3 {[%clk 0:01:26]}  Rd4 {[%clk 0:01:39]} 24. Qe3 {[%clk 0:01:11]}  h4 {[%clk 0:01:18]} 25. a4 {[%clk 0:01:05]}  Qe5 {[%clk 0:00:41]} 26. a5 {[%clk 0:00:39]}  Qxe3 {[%clk 0:00:21]} 27. fxe3 {[%clk 0:00:40]}  Rxd5 {[%clk 0:00:21]} 28. a6 {[%clk 0:00:40]}  hxg3 {[%clk 0:00:21]} 29. hxg3 {[%clk 0:00:38]}  Rd2 {[%clk 0:00:20]} 30. Kf2 {[%clk 0:00:37]}  Rb2 {[%clk 0:00:16]} 31. Rc6 {[%clk 0:00:36]}  Kf6 {[%clk 0:00:13]} 32. Rxc7 {[%clk 0:00:26]}  Rxc7 {[%clk 0:00:13]} 33. a7 {[%clk 0:00:27]}  Rc8 {[%clk 0:00:10]} 34. a8=Q {[%clk 0:00:27]}  Rxa8 {[%clk 0:00:11]} 35. Rxa8 {[%clk 0:00:26]}  Rb5 {[%clk 0:00:11]} 36. Ra6 {[%clk 0:00:26]}  Rf5+ {[%clk 0:00:11]} 37. Kg2 {[%clk 0:00:25]}  Ke6 {[%clk 0:00:12]} 38. Ra4 {[%clk 0:00:24]}  Re5 {[%clk 0:00:11]} 39. Kf3 {[%clk 0:00:22]}  f5 {[%clk 0:00:12]} 40. e4 {[%clk 0:00:17]}  Rc5 {[%clk 0:00:11]} 41. exf5+ {[%clk 0:00:16]}  gxf5 {[%clk 0:00:12]} 42. e3 {[%clk 0:00:16]}  Ke5 {[%clk 0:00:12]} 43. Rh4 {[%clk 0:00:15]}  Rc3 {[%clk 0:00:11]} 44. Rh8 {[%clk 0:00:14]}  d5 {[%clk 0:00:11]} 45. Re8+ {[%clk 0:00:14]}  Kf6 {[%clk 0:00:12]} 46. Rd8 {[%clk 0:00:13]}  Ke6 {[%clk 0:00:12]} 47. Re8+ {[%clk 0:00:13]}  Kd7 {[%clk 0:00:12]} 48. Rf8 {[%clk 0:00:13]}  Ke6 {[%clk 0:00:10]} 49. Re8+ {[%clk 0:00:13]}  Kf6 {[%clk 0:00:10]} 50. Rd8 {[%clk 0:00:13]}  Rd3 {[%clk 0:00:09]} 51. Kf4 {[%clk 0:00:12]}  Rd1 {[%clk 0:00:09]} 52. Rd6+ {[%clk 0:00:11]}  Ke7 {[%clk 0:00:09]} 53. Ke5 {[%clk 0:00:10]}  Re1 {[%clk 0:00:08]} 54. Rxd5 {[%clk 0:00:09]}  Rxe3+ {[%clk 0:00:07]} 55. Kxf5 {[%clk 0:00:10]}  Rxg3 {[%clk 0:00:08]} 56. Ra5 {[%clk 0:00:09]}  Rg1 {[%clk 0:00:08]} 57. Ra2 {[%clk 0:00:08]}  Kd6 {[%clk 0:00:08]} 58. Rb2 {[%clk 0:00:08]}  Rf1+ {[%clk 0:00:08]} 59. Ke4 {[%clk 0:00:07]}  Re1+ {[%clk 0:00:09]} 60. Kd3 {[%clk 0:00:07]}  Re5 {[%clk 0:00:09]} 61. Kc2 {[%clk 0:00:08]}  Rc5+ {[%clk 0:00:09]} 62. Kb3 {[%clk 0:00:07]}  Kc6 {[%clk 0:00:09]} 63. Rc2 {[%clk 0:00:07]}  Rxc2 {[%clk 0:00:09]} 64. Kxc2 {[%clk 0:00:08]} 1/2-1/2


[Site "https://www.chess.com"]